Cogmind - Beta 17 @@@ ROGUE MODE // 2026.06.27 @ 03:44:56 Player: HybriD Result: Destroyed by H-77 Assassin with Coil Gun Performance ------------- Evolutions (6) 3000 Regions Visited (12) 2400 Robots Destroyed (105) 525 Value Destroyed (5283) 5283 Prototype IDs (19) 380 Alien Tech Used (0) 0 Bonus (4577) 4577 TOTAL SCORE: 16165 Bonus ------- High Alert Combat Kills 92 Follower Combat Kills 990 Met Warlord at Base 500 MAIN.C Attacked Warlord 500 Warlord Defense Kills 2548 Friendly Fire -53 Cogmind --------- Core Integrity 0/1150 Matter 300/300 Energy 29/100 System Corruption 1% Temperature Cool (0) Movement Core (50) Location -3/Proximity Caves Parts ------- > --- POWER (3) -------- (None) > --- PROPULSION (4) --- (None) > --- UTILITY (9) ------ 0b10 Decoder Chip [Generic] Improved Target Analyzer > --- WEAPON (3) ------- (None) > --- INVENTORY (5) ---- Particle Reactor Xenon Bombardment Thruster Heavy Machine Gun Improved Proton Missile Launcher Peak State ------------ > --- POWER ------------ Improved Deuterium Engine Neutrino Core Neutrino Core > --- PROPULSION ------- Improved Medium Treads Armored Medium Treads Armored Medium Treads Advanced Medium Treads > --- UTILITY ---------- Advanced Coolant Injector Large Storage Unit 0b10 Decoder Chip [Generic] Improved Target Analyzer Improved Armor Integrity Analyzer Hardened Heavy Armor Plating Hacking Suite Advanced Hacking Suite > --- WEAPON ----------- Thermic Laser Mass Driver RU-N14's Throwing Claymores v3 > --- INVENTORY -------- Neutrino Core Antimatter Reactor Armored Medium Treads Beamcaster Wave Gun Phase Cannon Coil Gun KE Penetrator Assault Cannon Improved Proton Missile Launcher RU-N14's Throwing Claymores v3 RU-N14's Throwing Claymores v3 RU-N14's Throwing Claymores v3 RU-N14's Throwing Claymores v3 [Rating: 111] Favorites ----------- Power Neutrino Core Engine Improved Deuterium Engine Power Core Neutrino Core Propulsion Medium Treads Treads Medium Treads Flight Unit Xenon Bombardment Thruster Utility Large Storage Unit Device Advanced Coolant Injector Storage Large Storage Unit Processor Advanced Visual Processing Unit Hackware Advanced Hacking Suite Protection Improved Medium Armor Plating Weapon Improved EM Pulse Cannon Energy Gun Thermic Laser Energy Cannon Improved EM Pulse Cannon Ballistic Gun Gauss Rifle Ballistic Cannon Assault Cannon Launcher Improved Proton Missile Launcher Special Weapon RU-N14's Throwing Claymores v3 Build | -11 -10 -10 -8 -7 -6 -5 -5 -4 -4 -4 -4 -3 ------- Run | Yrd Mat Sub Mat Fac Fac Fac Ext Fac Upp Upp War Pro Slots Evolved 12 | . . . 4 2 2 2 . 2 . . . . Power 2 | . . . 1 . 1 . . . . . . . Propulsion 2 | . . . 1 . 1 . . . . . . . Utility 7 | . . . 2 2 . 2 . 1 . . . . Weapon 1 | . . . . . . . . 1 . . . . Parts Attached 122 | 6 1 3 18 11 6 5 32 8 . 7 19 6 Power 21 | 1 . . 5 2 1 . 8 1 . 1 2 . Engine 10 | 1 . . 4 2 . . 1 1 . 1 . . Core 11 | . . . 1 . 1 . 7 . . . 2 . Reactor . | . . . . . . . . . . . . . Propulsion 24 | 2 . . 4 . 3 . 8 . . 2 4 1 Treads 23 | 2 . . 4 . 3 . 8 . . 2 4 . Leg . | . . . . . . . . . . . . . Wheel . | . . . . . . . . . . . . . Hover . | . . . . . . . . . . . . . Flight 1 | . . . . . . . . . . . . 1 Utility 44 | 1 1 1 5 6 2 4 10 6 . 3 4 1 Device 20 | . . 1 3 2 1 2 7 3 . 1 . . Storage 5 | 1 1 . 1 . 1 1 . . . . . . Processor 8 | . . . 1 2 . . . 1 . 1 2 1 Hackware 2 | . . . . . . . 1 1 . . . . Protection 9 | . . . . 2 . 1 2 1 . 1 2 . Artifact . | . . . . . . . . . . . . . Weapon 33 | 2 . 2 4 3 . 1 6 1 . 1 9 4 Energy Gun 11 | 1 . 1 3 1 . 1 2 1 . . . 1 Energy Cannon 7 | . . . 1 1 . . 3 . . 1 . 1 Ballistic Gun 6 | 1 . 1 . . . . . . . . 3 1 Ballistic Cannon 2 | . . . . 1 . . . . . . 1 . Launcher 1 | . . . . . . . 1 . . . . . Special Weapon 6 | . . . . . . . . . . . 5 1 Impact Weapon . | . . . . . . . . . . . . . Slashing Weapon . | . . . . . . . . . . . . . Piercing Weapon . | . . . . . . . . . . . . . Special Melee Weapon . | . . . . . . . . . . . . . Unidentified Prototypes 7 | . . . 2 1 . 2 . . . . 2 . Parts Lost 62 | . . 4 2 1 . 1 14 . . 14 11 15 Power 12 | . . . 2 . . . 4 . . 2 3 1 Propulsion 15 | . . 2 . . . . 3 . . 4 3 3 Utility 19 | . . . . 1 . . 5 . . 5 2 6 Weapon 16 | . . 2 . . . 1 2 . . 3 3 5 Highest Loss Streak 6 | . . 2 2 1 . 1 2 . . 4 5 6 To Critical Strikes . | . . . . . . . . . . . . . Average Backups 11 | 2 3 4 8 14 14 14 14 14 15 13 10 5 Power 2 | 1 1 2 1 2 2 2 2 2 2 2 1 1 Propulsion 1 | . . . . 3 2 2 2 3 3 1 . . Utility 1 | . . 1 1 2 3 2 1 . 1 . . . Weapon 6 | 1 1 . 3 5 5 6 8 8 9 8 8 3 Tool/Special . | . . . . . . . . . . . . . Unused Backups 12 | . . . 6 . 2 . 1 1 . . . 2 Power 3 | . . . . . . . 1 . . . . 2 Propulsion 2 | . . . 1 . . . . 1 . . . . Utility 1 | . . . . . 1 . . . . . . . Weapon 5 | . . . 4 . 1 . . . . . . . Tool/Special 1 | . . . 1 . . . . . . . . . Average Slot Usage (%) 85 | . 85 78 73 99 99 99 92 89 100 91 78 62 Engine 6 | . 14 14 10 10 13 11 5 . 5 4 4 . Core 6 | . . . 4 3 5 5 10 14 10 6 5 4 Treads 18 | . 28 20 16 23 26 23 22 21 21 19 15 4 Device 13 | . . 1 7 16 20 28 21 20 21 14 9 4 Storage 6 | . 14 14 9 7 6 5 5 5 5 5 5 4 Processor 6 | . . . 5 13 6 5 3 1 5 9 11 14 Hackware 4 | . . . . . . . 1 5 10 10 10 9 Protection 3 | . . . . 6 6 4 5 4 5 5 . 4 Energy Gun 6 | . 14 14 9 7 6 7 4 5 5 5 4 4 Energy Cannon 4 | . . . 5 5 4 3 4 9 10 8 . 4 Ballistic Gun 3 | . 14 14 4 . . . . . . . 7 4 Peak Build Rating 111 | 6 7 8 31 43 59 72 81 92 85 93 111 88 Average Rating 59 | 4 6 6 20 40 51 68 70 85 85 87 84 68 On Entrance 47 | . 6 6 5 31 42 59 71 72 85 85 62 88 Avg Prop Armor Cover (%) . | . . . . . . . . . . . . . Naked Turns . | . . . . . . . . . . . . . Heaviest Build 102 | 14 29 31 42 58 66 73 84 89 75 84 102 58 Greatest Support 115 | 40 40 40 63 63 109 109 114 97 97 115 114 82 Greatest Overweight (x) 18 | . . 10 10 . . . 1 . . 1 1 18 Average Overweight (x) . | . . . . . . . . . . . . 1 Largest Inventory Capacity 15 | 8 15 15 15 15 15 15 15 15 15 15 15 15 Average Capacity 14 | 7 14 15 15 15 15 15 15 15 15 15 15 14 Most Carried 15 | 5 4 6 13 15 15 15 15 15 15 15 15 7 Average Carried 11 | 2 3 4 8 14 14 14 14 14 15 12 10 5 Final Capacity 15 | 8 15 15 15 15 15 15 15 15 15 15 15 5 Final Carried 15 | 2 4 5 11 15 14 15 15 15 15 13 7 4 Class Distribution -------------------- 32% | Mutant 32% | Scavenger-Gunner 14% | Scavenger-Mutant 7% | Scavenger-Skirmisher 4% | Commander-Mutant 3% | Hacker-Gunner Dominant Class ---------------- Mutant | -10/Materials Mutant | -10/Subcaves Mutant | -8/Materials Scavenger-Skirmisher | -7/Factory Mutant | -6/Factory Mutant | -5/Factory Scavenger-Mutant | -5/Extension Commander-Tank | -4/Factory Scavenger-Gunner | -4/Upper Caves Scavenger-Gunner | -4/Upper Caves Scavenger-Gunner | -4/Warlord Scavenger-Gunner | -3/Proximity Caves Resources | -11 -10 -10 -8 -7 -6 -5 -5 -4 -4 -4 -4 -3 ----------- Run | Yrd Mat Sub Mat Fac Fac Fac Ext Fac Upp Upp War Pro Matter Collected 2077 | 210 . 166 219 172 83 80 472 118 20 70 296 171 Remotely . | . . . . . . . . . . . . . Salvage Created 4636 | . . 218 652 158 . 166 1651 402 167 383 289 550 Parts 195 | . . 18 29 6 . 10 75 10 8 11 2 26 Haulers Intercepted . | . . . . . . . . . . . . . Recyclers Shooed 2 | . . . . . . 1 1 . . . . . Parts Field Recycled . | . . . . . . . . . . . . . Retrieved Matter . | . . . . . . . . . . . . . Parts Self-Destructed 47 | . . 16 . . . . . . 9 4 . 18 Prevented 9 | . . . . . . . . . 4 5 . . Parts Restored . | . . . . . . . . . . . . . Kills | -11 -10 -10 -8 -7 -6 -5 -5 -4 -4 -4 -4 -3 ------- Run | Yrd Mat Sub Mat Fac Fac Fac Ext Fac Upp Upp War Pro Combat Hostiles Destroyed 96 | . . 8 15 3 . 5 23 5 4 5 17 11 Guns 36 | . . 8 8 1 . 5 5 . 2 1 2 4 Cannons 35 | . . . 5 2 . . 12 4 2 4 5 1 AOE 18 | . . . 2 . . . 1 1 . . 10 4 Classes Destroyed 16 | . . 2 3 1 . 1 5 . . . 4 . Worker 2 | . . . . . . . 2 . . . . . Builder 3 | . . . . . . . 3 . . . . . Operator 2 | . . . . . . 1 . 1 . . . . Watcher 1 | . . . . . . . 1 . . . . . Swarmer 23 | . . 5 3 . . 4 2 2 3 . . 4 Saboteur 1 | . . . . . . . . . . . 1 . Grunt 32 | . . . 8 . . 1 5 2 . 2 9 5 Brawler 1 | . . . 1 . . . . . . . . . Protector 2 | . . . . . . . . . . . 2 . Sentry 20 | . . . 3 2 . . 11 1 1 1 . 1 Hunter 5 | . . . . . . . 3 . . 2 . . Programmer 2 | . . . . 1 . . . . . . . 1 Behemoth 3 | . . . . . . . 2 . . . 1 . Striker 2 | . . . . . . . . . . . 2 . Executioner 2 | . . . . . . . . . . . 2 . Subdweller 3 | . . 3 . . . . . . . . . . Savage 1 | . . . . . . . . 1 . . . . Best Kill Streak 11 | . . 2 5 1 . 5 4 3 3 2 11 5 Combat Bots Only 11 | . . 2 5 1 . 5 2 2 3 2 11 5 Max Kills in Single Turn 4 | . . 1 2 1 . 1 3 1 1 1 4 2 Gunslinging . | . . . . . . . . . . . . . Exploded 3 | . . . 2 . . . 1 1 . . 3 2 Melee . | . . . . . . . . . . . . . Uniques/NPCs Destroyed . | . . . . . . . . . . . . . Combat | -11 -10 -10 -8 -7 -6 -5 -5 -4 -4 -4 -4 -3 -------- Run | Yrd Mat Sub Mat Fac Fac Fac Ext Fac Upp Upp War Pro Hostile Shots Fired 880 | . . 75 59 57 . 36 194 63 18 110 124 144 Missed 237 | . . 18 18 16 . 8 50 22 6 30 31 38 Hits 643 | . . 57 41 41 . 28 144 41 12 80 93 106 Melee 6 | . . . 1 . . . 1 . . . 4 . Projectile 637 | . . 57 40 41 . 28 143 41 12 80 89 106 AOE 24 | . . . . . . . . . . . 24 . Critical Strikes 26 | . . 1 3 2 . . 6 2 . 6 2 4 Damage Taken 13013 | . . 797 610 368 . 411 2926 794 219 1627 3188 2073 Core 1893 | . . 222 123 73 . 57 259 56 . 171 320 612 Absorbed by Shields . | . . . . . . . . . . . . . Regen/Repaired (Parts) 534 | . . . 190 . . 82 130 . . . 132 . Core Remaining (%) 74 | 100 . 11 77 89 100 . 68 . . . . . Volleys Fired 271 | . . 34 36 13 . 10 90 21 6 14 26 21 Largest 3 | . . 2 2 2 . 2 2 3 3 3 3 3 Hottest 248 | . . 80 130 130 . 161 175 235 229 248 165 199 Shots Fired 589 | . . 68 71 26 . 20 178 57 18 42 66 43 Gun 336 | . . 68 57 13 . 19 82 18 6 14 31 28 Cannon 215 | . . . 14 13 . 1 84 36 12 28 18 9 Launcher 16 | . . . . . . . 12 3 . . 1 . Special 22 | . . . . . . . . . . . 16 6 Kinetic 117 | . . 34 21 8 . . . . . . 31 23 Thermal 366 | . . 34 36 13 . 19 153 39 12 28 18 14 Explosive 22 | . . . . . . . . . . . 16 6 Electromagnetic 84 | . . . 14 5 . 1 25 18 6 14 1 . Robot Hit Streak 24 | . . 7 15 8 . 18 24 11 13 17 18 5 Robot Miss Streak 5 | . . 5 3 2 . 5 3 2 1 4 3 2 Penetration Max 1 | . . . . . . . . . . . 1 . Secondary Targets 1 | . . 1 . . . . . . . . . . Max Gunslinging Chain 1 | . . 1 . . . . . . . . . . Shots Hit Robots 406 | . . 39 53 21 . 13 136 38 10 31 42 23 Core Hits 221 | . . 11 22 8 . 11 70 12 6 14 50 17 Critical Kills 2 | . . . . . . . . . . . . 2 Critical Parts Destroyed 2 | . . . . . . . . . . . 1 1 Critical Strikes 27 | . . 3 1 1 . . 5 2 2 4 4 5 Burn 19 | . . 3 1 1 . . 5 1 2 4 2 . Meltdown 1 | . . . . . . . . . . . . 1 Destroy 3 | . . . . . . . . . . . 1 2 Corrupt 1 | . . . . . . . . 1 . . . . Sever 3 | . . . . . . . . . . . 1 2 Melee Attacks . | . . . . . . . . . . . . . Impact . | . . . . . . . . . . . . . Slashing . | . . . . . . . . . . . . . Piercing . | . . . . . . . . . . . . . Sneak Attacks . | . . . . . . . . . . . . . Combat Hostiles . | . . . . . . . . . . . . . Follow-up Attacks . | . . . . . . . . . . . . . Damage Inflicted 16045 | . . 568 1387 472 . 425 4327 1203 220 785 4775 1883 Guns 5324 | . . 568 881 240 . 379 1836 277 72 198 473 400 Cannons 4353 | . . . 339 232 . 46 1801 689 148 587 337 174 Explosions 5379 | . . . 167 . . . 659 237 . . 3264 1052 Melee . | . . . . . . . . . . . . . Ramming 31 | . . . . . . . 31 . . . . . Kinetic 1626 | . . 296 301 156 . . . . . . 574 299 Thermal 6850 | . . 272 747 240 . 379 3411 633 122 473 298 275 Explosive 4224 | . . . . . . . . . . . 3172 1052 Electromagnetic 2356 | . . . 339 76 . 46 885 570 98 312 30 . Impact . | . . . . . . . . . . . . . Slashing 958 | . . . . . . . . . . . 701 257 Piercing . | . . . . . . . . . . . . . Highest Corruption 1 | . . . . . . . . . . . . 1 Average Corruption 1 | . . . . . . . . . . . . 1 Corruption Purged . | . . . . . . . . . . . . . Corruption Blocked . | . . . . . . . . . . . . . Overload Shots . | . . . . . . . . . . . . . Overflow Damage 128 | . . . . 8 . . 12 3 . 17 88 . Projectiles 59 | . . . . 8 . . . . . 17 34 . Explosions 68 | . . . . . . . 11 3 . . 54 . Melee 1 | . . . . . . . 1 . . . . . Knockbacks 2 | . . . . 1 . . . . . . . 1 Impact . | . . . . . . . . . . . . . Kinetic 2 | . . . . 1 . . . . . . . 1 Secondary . | . . . . . . . . . . . . . Self-Inflicted Damage 71 | . . . 43 . . . 28 . . . . . Shots 2 | . . . 1 . . . 1 . . . . . Rammed 1 | . . . . . . . 1 . . . . . Targets Rammed 1 | . . . . . . . 1 . . . . . Kicked . | . . . . . . . . . . . . . Crushed . | . . . . . . . . . . . . . Highest Temperature 439 | . . 262 359 439 . 392 407 193 165 198 322 198 Average Temperature 110 | . . 154 116 114 . 147 114 83 61 104 102 89 Received Heat Transfer 2363 | . . 360 288 78 . 27 453 111 18 156 601 271 Effects 12 | . . . 3 1 . 1 7 . . . . . Shutdowns 7 | . . . 1 . . 1 5 . . . . . Energy Bleed 1 | . . . 1 . . . . . . . . . Short Circuit 2 | . . . 1 . . . 1 . . . . . Damage (minor) 2 | . . . . 1 . . 1 . . . . . Siege Activations . | . . . . . . . . . . . . . Martial Activations . | . . . . . . . . . . . . . Shielding Activations . | . . . . . . . . . . . . . Robots Disrupted 1 | . . . . . . . 1 . . . . . Combat Hostiles 1 | . . . . . . . 1 . . . . . Robots Corrupted 2 | . . . . . . . 2 . . . . . Combat Hostiles 2 | . . . . . . . 2 . . . . . Parts Fried 5 | . . . . 1 . . 1 2 . 1 . . Impact Corruptions 1 | . . . . . . . 1 . . . . . Robots Melted 5 | . . . . . . . 3 . . . . 2 Combat Hostiles 5 | . . . . . . . 3 . . . . 2 Parts Melted 46 | . . 1 2 5 . 1 24 5 2 3 . 3 Heat Transferred 13003 | . . 1036 1297 481 . 547 5489 1227 474 1357 725 370 Parts Sabotaged . | . . . . . . . . . . . . . Parts Stolen . | . . . . . . . . . . . . . Parts Stripped . | . . . . . . . . . . . . . Power Chain Reactions 4 | . . . 1 . . . 2 . . . 1 . Alert | -11 -10 -10 -8 -7 -6 -5 -5 -4 -4 -4 -4 -3 ------- Run | Yrd Mat Sub Mat Fac Fac Fac Ext Fac Upp Upp War Pro Maximum Alert Level 2 | . . . . . . . 2 2 . . . . Low Security (%) 82 | 100 100 . 100 100 100 100 69 28 . . . . Level 1 6 | . . . . . . . 10 28 . . . . Level 2 11 | . . . . . . . 20 42 . . . . Level 3 . | . . . . . . . . . . . . . Level 4 . | . . . . . . . . . . . . . Level 5 . | . . . . . . . . . . . . . High Security . | . . . . . . . . . . . . . Max Security . | . . . . . . . . . . . . . Peak Influence 656 | . 8 . 134 45 5 98 531 656 . . . . Initial 242 | . . . . 28 5 . 12 242 . . . . Average 107 | . . . 62 7 . 19 166 371 . . . . Influence Increases 3803 | . 8 120 445 110 . 123 1215 934 113 170 310 255 Destroy 0b10 Robot/C 2420 | . . 100 300 60 . 100 700 440 100 100 300 220 Destroy 0b10 Robot/NC 70 | . . . . . . 5 50 5 . . 10 . Destroy Leader 286 | . . 20 70 30 . 10 66 60 . 10 . 20 Allied During Kill 613 | . . . . . . . 253 347 13 . . . Successful Hack 98 | . 8 . 23 5 . 4 48 10 . . . . Disable Machine 105 | . . . 15 15 . . 15 60 . . . . Destroy Structure 61 | . . . 7 . . 4 38 12 . . . . Lose Combat Pursuer 150 | . . . 30 . . . 45 . . 60 . 15 Influence Decreases 3744 | . 8 120 382 161 12 97 744 791 669 254 165 341 Entered New Map 710 | . . . . 35 7 . 14 255 237 17 . 145 Time Decay 2190 | . 8 116 362 126 5 97 500 246 392 147 55 136 Lost Part 354 | . . 4 20 . . . 90 . . 70 110 60 Lost Ally 326 | . . . . . . . 126 140 40 20 . . Purge Threat 164 | . . . . . . . 14 150 . . . . Squads Dispatched 12 | . . . 1 1 . 1 4 5 . . . . Investigation 4 | . . . . . . . 3 1 . . . . Extermination 3 | . . . . 1 . 1 . 1 . . . . Reinforcement 2 | . . . . . . . 1 1 . . . . Assault 2 | . . . . . . . . 2 . . . . Garrison 1 | . . . 1 . . . . . . . . . Intercept . | . . . . . . . . . . . . . Searches Triggered . | . . . . . . . . . . . . . Construction Impeded 1 | . . . . . . . . 1 . . . . Haulers Reinforced . | . . . . . . . . . . . . . Active Scanning Responses . | . . . . . . . . . . . . . Cargo Convoy Interrupts . | . . . . . . . . . . . . . Stealth | -11 -10 -10 -8 -7 -6 -5 -5 -4 -4 -4 -4 -3 --------- Run | Yrd Mat Sub Mat Fac Fac Fac Ext Fac Upp Upp War Pro Distress Signals 9 | . . . 3 . . . 4 2 . . . . Communications Jammed 39 | . . . . . . 37 2 . . . . . Distress Signals 39 | . . . . . . 37 2 . . . . . Times Spotted 172 | . 1 12 21 5 1 10 44 21 6 10 26 15 Peak Tracking Total 10 | . 1 3 4 1 1 4 5 7 5 3 10 5 Tactical Retreats 10 | . . . 2 . . . 4 . . 3 . 1 ECM-based Alert Blocks 2 | . . . . . . . 2 . . . . . Traps | -11 -10 -10 -8 -7 -6 -5 -5 -4 -4 -4 -4 -3 ------- Run | Yrd Mat Sub Mat Fac Fac Fac Ext Fac Upp Upp War Pro Traps Triggered 1 | . . . . . . . . 1 . . . . Indirectly . | . . . . . . . . . . . . . Trap Hack Attempts . | . . . . . . . . . . . . . Triggered . | . . . . . . . . . . . . . Disarmed . | . . . . . . . . . . . . . Reprogrammed . | . . . . . . . . . . . . . Reused . | . . . . . . . . . . . . . Traps Extracted . | . . . . . . . . . . . . . Installed . | . . . . . . . . . . . . . Triggered . | . . . . . . . . . . . . . Machines | -11 -10 -10 -8 -7 -6 -5 -5 -4 -4 -4 -4 -3 ---------- Run | Yrd Mat Sub Mat Fac Fac Fac Ext Fac Upp Upp War Pro Machines Disabled 7 | . . . 1 1 . . 1 4 . . . . Max in Single Turn 1 | . . . 1 1 . . 1 1 . . . . Garrison Access 1 | . . . 1 . . . . . . . . . Machines Repaired . | . . . . . . . . . . . . . Machines Dismantled . | . . . . . . . . . . . . . Machines Sabotaged . | . . . . . . . . . . . . . Overloaded Fab Kills . | . . . . . . . . . . . . . Hacking | -11 -10 -10 -8 -7 -6 -5 -5 -4 -4 -4 -4 -3 --------- Run | Yrd Mat Sub Mat Fac Fac Fac Ext Fac Upp Upp War Pro Machines Accessed 48 | . 3 . 8 5 3 3 18 3 . . 4 1 Terminals 34 | . 2 . 5 4 2 2 16 2 . . . 1 Fabricators 2 | . . . . . 1 . . 1 . . . . Repair Stations 4 | . 1 . 1 . . 1 1 . . . . . Recycling Units 1 | . . . . . . . 1 . . . . . Scanalyzers 2 | . . . 1 1 . . . . . . . . Garrison Access 1 | . . . 1 . . . . . . . . . Total Hacks 130 | . 11 . 31 16 10 4 39 9 . . 9 1 Successful 69 | . 3 . 20 10 2 3 17 4 . . 9 1 Failed 60 | . 8 . 11 5 8 1 22 5 . . . . Catastrophic 8 | . . . 1 1 1 . 4 1 . . . . Database Lockouts 1 | . . . . 1 . . . . . . . . Manual 13 | . . . 5 . 1 . 2 2 . . 3 . Terminals 82 | . 8 . 17 8 5 2 34 7 . . . 1 Fabricators 7 | . . . . . 5 . . 2 . . . . Repair Stations 15 | . 3 . 7 . . 2 3 . . . . . Recycling Units 2 | . . . . . . . 2 . . . . . Scanalyzers 14 | . . . 6 8 . . . . . . . . Garrison Access 1 | . . . 1 . . . . . . . . . Terminal Hacks 45 | . 3 . 10 4 1 1 14 2 . . 9 1 Record 9 | . . . . . . . . . . . 8 1 Robot Analysis 2 | . . . 2 . . . . . . . . . Prototype ID Bank 6 | . 1 . 1 1 . . 3 . . . . . Open Door 8 | . . . . . . 1 6 . . . 1 . Level Access Points 1 | . 1 . . . . . . . . . . . Branch Access Points 1 | . . . 1 . . . . . . . . . Emergency Access Points 1 | . . . . 1 . . . . . . . . Alert Level 8 | . . . 2 2 . . 3 1 . . . . Unreport Threat 2 | . . . . . . . 1 1 . . . . Locate Traps 3 | . . . 2 . . . 1 . . . . . Dispatch Records 1 | . 1 . . . . . . . . . . . Zone Layout 3 | . . . 2 . 1 . . . . . . . Fabricator Hacks 3 | . . . . . 1 . . 2 . . . . Load Schematic 2 | . . . . . 1 . . 1 . . . . Build 1 | . . . . . . . . 1 . . . . Repair Station Hacks 10 | . . . 6 . . 2 2 . . . . . Scan Component 5 | . . . 3 . . 1 1 . . . . . Repair 5 | . . . 3 . . 1 1 . . . . . Recycling Unit Hacks 1 | . . . . . . . 1 . . . . . Retrieve Components 1 | . . . . . . . 1 . . . . . Scanalyzer 9 | . . . 3 6 . . . . . . . . Insert Component 2 | . . . . 2 . . . . . . . . Analyze 2 | . . . . 2 . . . . . . . . Retrieve Study 5 | . . . 3 2 . . . . . . . . Garrison Access Hacks 1 | . . . 1 . . . . . . . . . Seal Access 1 | . . . 1 . . . . . . . . . Unauthorized Hacks . | . . . . . . . . . . . . . Terminals . | . . . . . . . . . . . . . Fabricators . | . . . . . . . . . . . . . Repair Stations . | . . . . . . . . . . . . . Recycling Units . | . . . . . . . . . . . . . Scanalyzers . | . . . . . . . . . . . . . Garrison Access . | . . . . . . . . . . . . . Data Cores Recovered 1 | . . . . . . 1 . . . . . . Used 1 | . . . . . . 1 . . . . . . Hacking Detections 38 | . 3 . 7 5 3 2 15 3 . . . . Full Trace Events 4 | . . . . . . . 3 1 . . . . Feedback Events . | . . . . . . . . . . . . . Feedback Blocked . | . . . . . . . . . . . . . Robot Schematics Acquired . | . . . . . . . . . . . . . Robots Built . | . . . . . . . . . . . . . Authchips . | . . . . . . . . . . . . . Time . | . . . . . . . . . . . . . Total Robot Build Rating . | . . . . . . . . . . . . . Part Schematics Acquired 2 | . . . . 2 . . . . . . . . Parts Built . | . . . . . . . . . . . . . Authchips . | . . . . . . . . . . . . . Time 42 | . . . . . . . . 42 . . . . Total Part Build Rating . | . . . . . . . . . . . . . Part Studies Acquired 5 | . . . 3 2 . . . . . . . . Parts Repaired 5 | . . . 3 . . 1 1 . . . . . Time 194 | . . . 106 . . 44 44 . . . . . Parts Recycled . | . . . . . . . . . . . . . Recycled Matter . | . . . . . . . . . . . . . Retrieved Matter . | . . . . . . . . . . . . . Retrieved Components 10 | . . . . . . . 10 . . . . . Parts Scanalyzed 2 | . . . . 2 . . . . . . . . Part Schematics Acquired 2 | . . . . 2 . . . . . . . . Parts Damaged . | . . . . . . . . . . . . . Bothacking | -11 -10 -10 -8 -7 -6 -5 -5 -4 -4 -4 -4 -3 ------------ Run | Yrd Mat Sub Mat Fac Fac Fac Ext Fac Upp Upp War Pro Used RIF Installer . | . . . . . . . . . . . . . Robots Hacked . | . . . . . . . . . . . . . Non-combat . | . . . . . . . . . . . . . Combat . | . . . . . . . . . . . . . Robot Hacks Applied . | . . . . . . . . . . . . . Relay Couplers Released . | . . . . . . . . . . . . . Fabnet Peak Effective % . | . . . . . . . . . . . . . Robots Rewired 17 | . . . . . . . 17 . . . . . Allies Hacked . | . . . . . . . . . . . . . Hacks Repelled . | . . . . . . . . . . . . . Allies | -11 -10 -10 -8 -7 -6 -5 -5 -4 -4 -4 -4 -3 -------- Run | Yrd Mat Sub Mat Fac Fac Fac Ext Fac Upp Upp War Pro Total Allies 25 | . . . . . . . 25 . . . . . Largest Group 17 | . . . . . . . 17 17 3 . . . Highest-Rated Group 473 | . . . . . . . 473 473 73 . . . Highest-Rated Ally 39 | . . . . . . . 39 39 31 . . . Total Orders . | . . . . . . . . . . . . . Ally Attacks 250 | . . . . . . . 126 119 5 . . . Total Damage 4248 | . . . . . . . 2255 1951 42 . . . Kills 39 | . . . . . . . 16 22 1 . . . Allies Corrupted . | . . . . . . . . . . . . . Allies Melted 1 | . . . . . . . . . . . 1 . Intel | -11 -10 -10 -8 -7 -6 -5 -5 -4 -4 -4 -4 -3 ------- Run | Yrd Mat Sub Mat Fac Fac Fac Ext Fac Upp Upp War Pro Active Infowar (turns) 9876 | . . 117 651 987 475 673 2393 531 926 10 1848 1265 Optics 4709 | . . 117 651 987 475 673 1806 . . . . . Sensors 5236 | . . . . 228 475 673 2393 531 926 10 . . Terrain 1345 | . . . 393 738 . . 214 . . . . . Decoding 3113 | . . . . . . . . . . . 1848 1265 Jamming 1560 | . . . . 227 475 673 185 . . . . . ECM 715 | . . . . . . . 715 . . . . . Robot Analysis Total 2 | . . . 2 . . . . . . . . . Derelict Logs Recovered 4 | . . . . . . . . . 2 2 . . Drone Launches . | . . . . . . . . . . . . . Drone Recoveries . | . . . . . . . . . . . . . Exploration | -11 -10 -10 -8 -7 -6 -5 -5 -4 -4 -4 -4 -3 ------------- Run | Yrd Mat Sub Mat Fac Fac Fac Ext Fac Upp Upp War Pro Turns Passed 12279 | 56 185 1237 989 987 475 673 2393 531 926 714 1848 1265 Spaces Moved 5989 | 31 111 537 368 561 285 343 1050 236 565 399 1017 486 Core 181 | 6 . 2 6 . . . . . . . . 167 Treads 5807 | 25 111 535 362 561 285 343 1050 236 565 399 1017 318 Legs . | . . . . . . . . . . . . . Wheels . | . . . . . . . . . . . . . Hover . | . . . . . . . . . . . . . Flight 1 | . . . . . . . . . . . . 1 Fastest Speed 50 | 50 160 160 160 160 160 160 160 160 160 158 158 50 Average Speed 171 | 138 160 195 186 160 160 160 160 160 160 160 159 245 Slowest Speed 950 | 160 160 550 550 160 160 160 200 160 160 220 250 950 Overloaded Moves . | . . . . . . . . . . . . . Propulsion Burnouts . | . . . . . . . . . . . . . Robots Hopped . | . . . . . . . . . . . . . Potential Cave-ins . | . . . . . . . . . . . . . Cave-ins Triggered . | . . . . . . . . . . . . . Exploration Rate (%) 38 | 3 23 19 33 20 7 10 94 7 82 54 89 63 Regions Visited 12 Branch Regions 6 Pre-discovered Areas 2 | . . . . . . . . . 1 1 . . Known Exits Taken . | . . . . . . . . . . . . . Unknown Exits Taken 12 | 1 1 1 1 1 1 1 1 1 1 1 1 . Scrap Searched 4 | . . . . . . . . . 1 2 . 1 Spaces Dug . | . . . . . . . . . . . . . Terrain Destroyed 272 | . . . 4 . . . 6 . . . 138 124 Melee . | . . . . . . . . . . . . . Projectile 22 | . . . 2 . . . 3 . . . 9 8 AOE 250 | . . . 2 . . . 3 . . . 129 116 Terrain Rammed . | . . . . . . . . . . . . . Walls Destroyed . | . . . . . . . . . . . . . Machines Disabled . | . . . . . . . . . . . . . Actions | -11 -10 -10 -8 -7 -6 -5 -5 -4 -4 -4 -4 -3 --------- Run | Yrd Mat Sub Mat Fac Fac Fac Ext Fac Upp Upp War Pro Total 7457 | 44 119 660 604 627 306 445 1578 342 574 443 1189 526 Wait 751 | . 4 82 137 21 5 77 224 65 4 17 114 1 Move 5977 | 30 110 536 367 560 284 342 1049 235 564 398 1016 486 Hop . | . . . . . . . . . . . . . Pick Up 103 | 8 3 4 31 11 4 6 15 4 . 5 9 3 Fast Attach 22 | . . . . 2 . 1 10 4 . . 4 1 Attach 80 | 6 1 3 15 4 2 4 13 3 . 7 15 7 Detach 3 | . . . . . . . . . . . . 3 Swap 47 | . . . 5 7 5 3 18 5 . 1 3 . Drop 63 | . 1 1 13 9 6 2 20 5 . 1 1 4 Fire 271 | . . 34 36 13 . 10 90 21 6 14 26 21 Melee . | . . . . . . . . . . . . . Ram . | . . . . . . . . . . . . . Kick . | . . . . . . . . . . . . . Crush 1 | . . . . . . . 1 . . . . . Escape Stasis . | . . . . . . . . . . . . . Rewire 139 | . . . . . . . 138 . . . 1 . Trap . | . . . . . . . . . . . . . Miscellaneous . | . . . . . . . . . . . . . Route ------- -11/Scrapyard -10/Materials (discovered 4 exits: Mat x3 / [*Sub]) -10/Subcaves -8/Materials -7/Factory -6/Factory -5/Factory -5/Extension (discovered 2 exits: *Fac / [*Cet]) -4/Factory -4/Upper Caves -4/Upper Caves -4/Warlord -3/Proximity Caves History --------- Turn | Location | Event 14 | -11/Scrapyard | Discovered new exit (range 16) 57 | -11/Scrapyard | Entered Materials 168 | -10/Materials | Identified exit to Materials 232 | -10/Materials | Discovered new exit (range 4) 242 | -10/Materials | Entered Subcaves 243 | -10/Subcaves | Approached by a straggling Scientist 316 | -10/Subcaves | Build established: Mutant 643 | -10/Subcaves | Discovered new exit (range 13) 771 | -10/Subcaves | Core integrity fell below 50% 822 | -10/Subcaves | Disturbed a concealed Subdweller 1462 | -10/Subcaves | A Subdweller sparked back to life 1479 | -10/Subcaves | Core integrity fell below 20% 1479 | -10/Subcaves | Entered Materials 1479 | -8/Materials | Evolved 4 slots: Power x1, Propulsion x1, Utility x2 1941 | -8/Materials | Garrison activated, responded to threat 2123 | -8/Materials | Discovered new exit (range 12) 2242 | -8/Materials | Repaired Imp. Terrain Scanner 2276 | -8/Materials | Repaired Imp. Treads+ 2329 | -8/Materials | Repaired Corrupted Lgt. Treads 2468 | -8/Materials | Entered Factory 2468 | -7/Factory | Evolved 2 slots: Utility x2 2802 | -7/Factory | Build established: Scavenger-Skirmisher 3362 | -7/Factory | Discovered new exit (range 13) 3414 | -7/Factory | Central database locked down 3455 | -7/Factory | Entered another Factory area 3455 | -6/Factory | Evolved 2 slots: Power x1, Propulsion x1 3496 | -6/Factory | Build established: Mutant 3667 | -6/Factory | Discovered new exit (range 5) 3930 | -6/Factory | Entered another Factory area 3930 | -5/Factory | Evolved 2 slots: Utility x2 4069 | -5/Factory | Repaired Imp. Medium Armor Plating 4161 | -5/Factory | Spotted B-75 Beast 4597 | -5/Factory | Discovered new exit (range 5) 4603 | -5/Factory | Entered Extension 4753 | -5/Extension | Rescued a captive Derelict 5163 | -5/Extension | Build established: Scavenger-Mutant 5179 | -5/Extension | Repaired Med. Treads+ 5465 | -5/Extension | Spotted B-75 Beast 5804 | -5/Extension | Destroyed B-75 Beast 5809 | -5/Extension | Spotted B-75 Beast 5843 | -5/Extension | Destroyed B-75 Beast 6033 | -5/Extension | Discovered new exit (range 19) 6035 | -5/Extension | Discovered new exit (range 19) 6161 | -5/Extension | Rescued a captive Derelict 6163 | -5/Extension | Rescued a captive Derelict 6177 | -5/Extension | Rescued a captive Derelict 6180 | -5/Extension | Rescued a captive Derelict 6197 | -5/Extension | Rescued a captive Derelict 6202 | -5/Extension | Rescued a captive Derelict 6242 | -5/Extension | Rescued a captive Derelict 6924 | -5/Extension | Build established: Commander-Mutant 6996 | -5/Extension | Entered Factory 6996 | -4/Factory | Accompanied by 17 allies 6996 | -4/Factory | Evolved 2 slots: Utility x1, Weapon x1 7321 | -4/Factory | Lost 6 allies 7371 | -4/Factory | Build established: Commander-Tank 7412 | -4/Factory | P-70 Sage assimilated allied 0K-468(g) 7438 | -4/Factory | Lost 5 allies 7496 | -4/Factory | First assault squad dispatched 7508 | -4/Factory | Discovered new exit (range 7) 7527 | -4/Factory | Entered Upper Caves 7527 | -4/Upper Caves | Accompanied by 3 allies 7701 | -4/Upper Caves | Build established: Scavenger-Gunner 7951 | -4/Upper Caves | Attracted the attention of an 0b10 checkpoint 8122 | -4/Upper Caves | Encountered a Warlord checkpoint 8271 | -4/Upper Caves | Discovered new exit (range 10) 8453 | -4/Upper Caves | Entered another Upper Caves area 8453 | -4/Upper Caves | Accompanied by 1 ally 8501 | -4/Upper Caves | Lost 4 parts (1n2u1w) 8559 | -4/Upper Caves | Learned Research non-interactive machine intel 8687 | -4/Upper Caves | Attracted the attention of an 0b10 checkpoint 8760 | -4/Upper Caves | Lost 3 parts (2p1n) 8814 | -4/Upper Caves | Learned location of Testing (-3) 8964 | -4/Upper Caves | Spotted B-86 Titan 9147 | -4/Upper Caves | Discovered new exit (range 15) 9167 | -4/Upper Caves | Entered Warlord 9198 | -4/Warlord | Lost 3 parts (2u1w) 9284 | -4/Warlord | Discovered new exit (range 8) 9765 | -4/Warlord | Opened side exit 10091 | -4/Warlord | Met Warlord 10116 | -4/Warlord | Warlord's base attacked by MAIN.C 10220 | -4/Warlord | Found Prototype Special Weapon 10221 | -4/Warlord | Identified RU-N14's Throwing Claymores v3 10225 | -4/Warlord | Found RU-N14's Throwing Claymores v3 10227 | -4/Warlord | Found RU-N14's Throwing Claymores v3 10230 | -4/Warlord | Found RU-N14's Throwing Claymores v3 10232 | -4/Warlord | Found RU-N14's Throwing Claymores v3 10235 | -4/Warlord | Found RU-N14's Throwing Claymores v3 10272 | -4/Warlord | Learned Armory trap positions 10272 | -4/Warlord | Learned Armory emergency access door positions 10272 | -4/Warlord | Learned 4 Access zone layouts 10272 | -4/Warlord | Learned 4 Testing zone layouts 10272 | -4/Warlord | Learned 4 Quarantine zone layouts 10274 | -4/Warlord | Learned Quarantine security intel 10274 | -4/Warlord | Learned Armory scanalyzer intel 10466 | -4/Warlord | Warlord forces counterattacked 10532 | -4/Warlord | Build established: Hacker-Gunner 10684 | -4/Warlord | Spotted Striker 10698 | -4/Warlord | Destroyed Striker 10733 | -4/Warlord | Destroyed 11 combat bots 10751 | -4/Warlord | Spotted B-90 Cyclops 10766 | -4/Warlord | Destroyed B-90 Cyclops 10791 | -4/Warlord | Warlord base infiltrated, sounded retreat 10791 | -4/Warlord | Destroyed Executioner 10827 | -4/Warlord | Lost 4 parts (1p2n1u) 10863 | -4/Warlord | Spotted Striker 10876 | -4/Warlord | Spotted Executioner 10883 | -4/Warlord | Destroyed Striker 10904 | -4/Warlord | Destroyed Executioner 10924 | -4/Warlord | Lost 5 parts (2p1n2w) 11015 | -4/Warlord | Entered Proximity Caves 11022 | -3/Proximity Caves | Core integrity fell below 50% 11052 | -3/Proximity Caves | Lost 3 parts (2n1w) 11091 | -3/Proximity Caves | Attracted the attention of an 0b10 checkpoint 11336 | -3/Proximity Caves | Build established: Scavenger-Gunner 12084 | -3/Proximity Caves | Spotted B-86 Titan 12146 | -3/Proximity Caves | Lost 6 parts (1p1n2u2w) 12219 | -3/Proximity Caves | Core integrity fell below 20% 12250 | -3/Proximity Caves | Lost 3 parts (3u) 12274 | -3/Proximity Caves | Ambushed by research squad 12280 | -3/Proximity Caves | Destroyed by H-77 Assassin with Coil Gun Last Messages --------------- 12234_ Xenon Bombardment Thruster fries itself beyond repair. 12235_ Dropped Coil Gun. 12235_ Dropped Antimatter Reactor. 12236_ Acquired 42 matter. 12248_ The unstable cave ceiling collapses. 12256_ Acquired 23 matter. 12273_ Penetrated by Slug. 12273_ Slug penetrates Wall. 12274_ P-80 Master: "UNIQUE TECHNOLOGY DETECTED, NEUTRALIZE FOR ANALYSIS." 12274_ Penetrated by Slug. 12274_ Slug penetrates Wall. 12275_ P-80 Master Adv. Remote Datajack severed. 12275_ P-80 Master destroyed. 12277_ Hacking Suite destroyed. 12277_ H-77 Assassin Imp. Phase Shifter severed. 12278_ The unstable cave ceiling collapses. 12280_ Penetrated by Slug. 12280_ RU-N14's Throwing Claymores v3 destroyed. Map ----- +----------------------------------------------------+ | # ##?# #??# #?## #?????????# ?## | | ### #??? #??######?????????# ## | | # "# #??? #??????????????????# | | ## ??? #??????????????????## | | ?# ## ??? #???????????????????# # | | ## #?? #???##???????????????????## # | | " #?? #???????????????????????######## | | % #?? ???????????????????????## ????## | | ### #?????????????????????????### ?????# | | % #??????????????????????????????## ##???# | | % #????????????????????????#?????# ##### | | #?????????????????????#??# ????# | | # #????????????????????# ##?# ??## | | #####???????????????????# #??# ## # +#### | | #???????????????????????# ##?? #" "" " | | ????????????????????????# ??? #"" | | ????????????????????????? ????? # T | | ????????????????????????? ???????# # " | | ???????????????#????????? ????????# # | | ???????????????# ####???? #????????# | | ??????????????## ???# #????????# " " | | ??????????????# #?## #????????#! #" " ] | | ??????????????# ## ##???????#%!#" | | ??????????????# h[ #????##?# ###### # | | ??????????????# # | ##### ### | | ??????????????# h% @ ## | | ??????????????# # ### #### ## ### | | ????????????????????????# ## ### | | ????????????????????????### ## | | ??????????????????????????# ########?### | | ??????????????????????????# #??????????###### | | ?????????????????????????## ##???????????????? | | ?????????????????????????# ##???????###??????? | | ?????????????????????????# #???????? ##????? | | ?????????????????????????### ##??????? ##???? | | ???????????????????????????## #???????? #???? | | ????????????????????????????## ##??????? #???? | | ?????????????????????????????### ##?????? #???? | | ???????????????????????????????# ##?????# ##### | | ???????????????????????????????# #?????# #?# # | | ???????????????????????????????# ####?## #?# | | ???????????????????????????????# ### #?# | | ??????????????????????????###### ## ### | | ??????????????????????????# ## | | ??????????????????????????# % | | ?????????????????????????## #### | | ????????????????????????## ###### | | ????????????????????????# #### #### | | ????????????????????????# ## ##??? | | ????????????????????????## #### ##???? | +----------------------------------------------------+ Best States ------------- Heat Dissipation 78 Coolant Potential 100 Energy Generation 47 Energy Capacity 720 Matter Stores 300 Matter Capacity 300 Sight Range 21 Robot Scan Range 16 Terrain Scan Range 16 Terrain Scan Density 210 ECM Strength 2 Jamming Range 12 Power Amplification 30 Armor Coverage 600 Evasion (%) 50 Targeting Accuracy 5 Target Analysis 6 Armor Integrity Analysis 40 Recoil Reduction 4 Energy Filtering 30 Particle Charging 20 Offensive Hacking 24 Item Schematics ----------------- EM Pulse Cannon | -7/Factory | Scanalyzed Med. Treads | -7/Factory | Scanalyzed Robot Schematics ------------------ None Fabricated ------------ Nothing Repaired ---------- Imp. Terrain Scanner | 13% | -8/Materials Imp. Treads | 5% | -8/Materials Lgt. Treads | 82% | -8/Materials | Corrupted Imp. Medium Armor Plating | 65% | -5/Factory Med. Treads | 29% | -5/Extension Studied --------- Imp. Treads | -8/Materials | Hacked Hvy. Particle Cannon | -8/Materials | Hacked Ion Engine | -8/Materials | Hacked Med. Treads | -7/Factory | Hacked Assault Cannon | -7/Factory | Hacked Alien Tech Used ----------------- None Achievements -------------- Charge!!! Omniscient Cartographer Challenges ------------ None Game ------ Seed RemoteTransmissionTorch Manual? 0 Play Time 01:59:03 Cumulative 127.1 hours Start 2026.06.27 @ 01:44:05 End 2026.06.27 @ 03:44:56 Sessions 1 Manual Loads 0 Difficulty Rogue Special Mode None Game No. 127 Rogue 127 Adventurer 0 Explorer 0 Win Type - Total 1 Types 0/0/1/0/0/0/0/0/0/0 Lore% 29 Gallery% 47 Achievement% 24 Wizard Run 0 Options --------- Layout 1 ASCII 0 Keyboard 0 Movement Mouse Keybinds 0 Fullscreen 1 Font 24/Smallcaps Map View 50x35 Zoom Use 0% Tactical HUD 1 Map Filters NONE Filters NONE Steam 1 RUN: e4d8dfd3-5f3a-456c-bd59-25c57abae145